Cogmind - Beta 15 @@@ ROGUE MODE // 2025.06.19 @ 19:04:46 Player: EX-OCT Result: Destroyed by H-77 Assassin with High-powered Shotgun Performance ------------- Evolutions (6) 3000 Regions Visited (25) 5000 Robots Destroyed (261) 1305 Value Destroyed (17035) 17035 Prototype IDs (14) 280 Alien Tech Used (0) 0 Bonus (12455) 12455 TOTAL SCORE: 39075 Bonus ------- High Alert Combat Kills 1047 Follower Combat Kills 5444 Entered Garrisons 1800 Used RIF Installer 4000 Network Hubs Disabled 200 Friendly Fire -36 Cogmind --------- Core Integrity 0/1150 Matter 68/300 Energy 99/100 System Corruption 4% Temperature Cool (9) Movement Core (50) Location -4/Garrison Parts ------- > --- POWER (2) -------- (None) > --- PROPULSION (6) --- (None) > --- UTILITY (9) ------ Advanced Visual Processing Unit Advanced Terrain Scan Processor Graphene Brace Relay Coupler [Grunt] (12) Relay Coupler [Hunter] (26) Relay Coupler [Behemoth] (18) Relay Coupler [Behemoth] (4) > --- WEAPON (2) ------- (None) > --- INVENTORY (5) ---- KE Penetrator Katana Peak State ------------ > --- POWER ------------ Particle Reactor > --- PROPULSION ------- Armored Medium Treads Armored Medium Treads Improved Heavy Treads Improved Heavy Treads > --- UTILITY ---------- Cargo Storage Unit Active Sensor Suite Improved Transmission Jammer Relay Coupler [NC] Relay Coupler [Heavy] > --- WEAPON ----------- Advanced KE Penetrator Improved Remote Datajack > --- INVENTORY -------- Neutrino Core Armored Medium Treads Armored Medium Treads Armored Medium Treads Layered Medium Armor Plating Layered Medium Armor Plating Relay Coupler [NC] Relay Coupler [NC] Relay Coupler [NC] Relay Coupler [NC] Relay Coupler [NC] Advanced KE Penetrator Heavy Flak Cannon Heavy Flak Cannon Long-range Missile Launcher Long-range Missile Launcher Remote Datajack Remote Datajack Improved Remote Datajack Improved Remote Datajack Power Maul Katana [Rating: 113] Favorites ----------- Power Reinforced Deuterium Engine Engine Reinforced Deuterium Engine Power Core Neutrino Core Reactor Particle Reactor Propulsion Improved Heavy Treads Treads Improved Heavy Treads Leg Carbon-fiber Leg Wheel Compact Wheel Hover Unit Improved Airjet Flight Unit Improved Surge Thruster Utility Improved Hacking Suite Device Improved Transmission Jammer Storage Cargo Storage Unit Processor Advanced Terrain Scan Processor Hackware Improved Hacking Suite Protection Layered Medium Armor Plating Weapon Power Maul Energy Gun Small Laser Energy Cannon Beam Cannon Ballistic Gun Flak Gun Ballistic Cannon Flak Cannon Launcher Long-range Missile Launcher Special Weapon Remote Datajack Impact Weapon Power Maul Slashing Weapon Katana Build | -11 -10 -10 -10 -8 -8 -8 -8 -7 -7 -7 -7 -6 -6 -6 -6 -6 -6 -5 -5 -5 -5 -4 -4 -4 -4 ------- Run | Yrd Mat Min Sub Mat Gar Mat Gar Fac Gar Fac Gar Fac Ext Cet Arc Hub Gar Fac Gar Fac Gar Fac Gar Fac Gar Slots Evolved 12 | . . . . 4 . . . 2 . . . 2 . . . . . 2 . . . 2 . . . Power 1 | . . . . . . . . . . . . . . . . . . . . . . 1 . . . Propulsion 4 | . . . . 2 . . . 1 . . . 1 . . . . . . . . . . . . . Utility 7 | . . . . 2 . . . 1 . . . 1 . . . . . 2 . . . 1 . . . Weapon . | . . . . . . . . . . . . . . . . . . . . . . . . . . Parts Attached 268 | 7 8 1 10 19 8 14 17 17 24 6 10 3 8 7 2 3 7 9 21 24 8 12 8 . 15 Power 27 | 1 . . 1 2 1 2 2 2 4 . . 1 . . . 2 . 3 2 . 2 1 . . 1 Engine 11 | 1 . . 1 1 . 2 1 1 1 . . 1 . . . 1 . . . . 1 . . . . Core 14 | . . . . 1 1 . 1 1 3 . . . . . . 1 . 3 1 . 1 1 . . . Reactor 2 | . . . . . . . . . . . . . . . . . . . 1 . . . . . 1 Propulsion 69 | 2 2 . 1 9 . 3 6 4 6 1 4 . 1 3 . . . . 11 4 3 2 4 . 3 Treads 36 | 2 2 . 1 3 . . . . . . 4 . 1 3 . . . . 6 4 3 2 3 . 2 Leg 30 | . . . . 4 . 3 6 4 6 1 . . . . . . . . 5 . . . . . 1 Wheel 1 | . . . . 1 . . . . . . . . . . . . . . . . . . . . . Hover 1 | . . . . 1 . . . . . . . . . . . . . . . . . . . . . Flight 1 | . . . . . . . . . . . . . . . . . . . . . . . 1 . . Utility 114 | 2 5 . 3 4 3 5 5 7 11 4 5 2 5 2 1 1 4 5 8 14 2 5 3 . 8 Device 20 | 2 1 . . . . . . 1 2 . 1 . 2 . . . . . 1 3 1 2 . . 4 Storage 6 | . 2 . . 1 1 . . . . . 1 . . . . . . . 1 . . . . . . Processor 8 | . . . . 1 . . . 2 1 . . . 1 . . . . . . 1 . 1 . . 1 Hackware 47 | . . . . . 1 . 2 3 6 3 2 1 2 . 1 1 3 3 5 8 . 1 2 . 3 Protection 33 | . 2 . 3 2 1 5 3 1 2 1 1 1 . 2 . . 1 2 1 2 1 1 1 . . Artifact . | . . . . . . . . . . . . . . . . . . . . . . . . . . Weapon 58 | 2 1 1 5 4 4 4 4 4 3 1 1 . 2 2 1 . 3 1 . 6 1 4 1 . 3 Energy Gun 3 | 1 . . . . . . . 1 . . . . . . . . . . . . . 1 . . . Energy Cannon 2 | . 1 . . . . . . . . . . . . . . . . . . . . 1 . . . Ballistic Gun 18 | 1 . 1 4 2 . 2 1 1 1 . . . 1 2 . . . . . . . 1 . . 1 Ballistic Cannon 10 | . . . 1 1 1 . 2 . . . . . . . . . 2 . . 1 1 . . . 1 Launcher 8 | . . . . . 1 1 . . 1 . . . . . . . . . . 2 . 1 1 . 1 Special Weapon 12 | . . . . . . . 1 2 1 1 1 . 1 . . . 1 1 . 3 . . . . . Impact Weapon 2 | . . . . 1 1 . . . . . . . . . . . . . . . . . . . . Slashing Weapon 3 | . . . . . 1 1 . . . . . . . . 1 . . . . . . . . . . Piercing Weapon . | . . . . . . . . . . . . . . . . . . . . . . . . . . Special Melee Weapon . | . . . . . . . . . . . . . . . . . . . . . . . . . . Unidentified Prototypes 14 | . . . . 1 . . . 1 . . 1 1 . 3 . . . 2 . 3 . 2 . . . Corrupted Parts 1 | . . . . . . . . . . . . . . . . . 1 . . . . . . . . System Corruption 3 | . . . . . . . . . . . . . . . . . 3 . . . . . . . . Parts Lost 94 | . 1 1 4 2 1 7 5 2 8 1 . . 1 1 . 3 3 1 7 7 6 8 14 . 11 Power 9 | . . . . . 1 1 1 . 1 . . . . . . 1 . . . . 1 . 2 . 1 Propulsion 39 | . . . 1 1 . 1 2 1 6 1 . . 1 1 . . 3 . 2 3 2 3 6 . 5 Utility 30 | . 1 . 2 . . 4 2 1 1 . . . . . . . . 1 2 4 . 5 4 . 3 Weapon 16 | . . 1 1 1 . 1 . . . . . . . . . 2 . . 3 . 3 . 2 . 2 Highest Loss Streak 12 | . 1 1 1 1 1 2 3 1 3 1 . . 1 1 . 3 2 1 3 4 3 3 12 . 5 To Critical Strikes 2 | . . . . . . . . . . . . . . 1 . . . . . . 1 . . . . Average Backups 20 | 1 6 10 9 19 20 19 19 19 19 16 23 26 26 25 26 23 26 29 27 23 18 17 19 4 4 Power 1 | . 1 1 . . . . 1 1 1 2 2 2 2 2 2 2 1 1 1 1 1 1 1 . . Propulsion 1 | . 2 3 1 . 2 4 4 1 . . 2 3 2 2 3 3 1 . 1 2 1 . . . . Utility 8 | . 1 5 3 3 4 4 5 6 7 6 9 11 12 11 10 9 14 16 16 10 5 6 8 1 . Weapon 7 | . 1 1 3 14 13 10 8 8 7 6 7 7 7 7 7 7 7 7 7 6 6 6 6 3 2 Tool/Special . | . . . . . . . . . . . . . . . . . . . . . . . . . . Unused Backups 26 | . . . . 1 1 . 2 1 . . 3 . . . . . 3 . 4 . . . 11 . . Power 1 | . . . . . . . . . . . . . . . . . . . . . . . 1 . . Propulsion . | . . . . . . . . . . . . . . . . . . . . . . . . . . Utility 21 | . . . . . . . 2 . . . 3 . . . . . 3 . 3 . . . 10 . . Weapon 3 | . . . . 1 1 . . . . . . . . . . . . . 1 . . . . . . Tool/Special 1 | . . . . . . . . 1 . . . . . . . . . . . . . . . . . Average Slot Usage (%) 84 | . 99 100 99 87 96 95 98 97 95 99 76 75 74 65 70 71 73 72 80 73 79 79 68 36 58 Engine 5 | . 14 14 14 6 4 5 8 4 4 7 7 6 6 6 6 5 6 2 . . 1 4 . . . Core 1 | . . . . 2 3 3 . 2 1 . . . . . . . . 2 4 . 1 5 4 . . Treads 15 | . 27 28 28 15 . . . . . . 20 26 25 19 20 20 21 16 17 17 26 23 20 10 16 Leg 11 | . . . . 16 36 35 35 37 35 37 3 . . . . . . . 3 . . . . . . Device 3 | . 7 . . . . . . . . 7 4 . . . 2 5 4 5 4 5 6 9 8 . 9 Storage 7 | . 7 14 14 9 9 9 9 7 7 7 7 6 6 6 6 6 6 5 5 5 5 5 4 . . Processor 1 | . . . . 4 7 . . 1 3 . . . . . . . . . . . . 4 5 5 8 Hackware 14 | . . . . . 1 9 13 19 18 21 16 15 20 13 14 12 18 20 25 23 11 8 6 15 14 Protection 6 | . 12 14 13 12 15 16 13 6 5 . . 5 . 5 6 6 2 4 3 1 11 6 7 . . Ballistic Gun 5 | . 14 27 20 16 1 9 4 5 1 3 1 1 1 10 5 1 . . 2 . 1 1 1 . 3 Ballistic Cannon 2 | . . . 6 1 8 1 4 3 . 5 1 1 . 1 . . 1 5 1 . 1 2 3 . . Special Weapon 2 | . . . . . . . . 1 5 3 5 4 5 . 3 4 4 2 3 4 1 3 1 5 . Impact Weapon 2 | . . . . . 7 3 5 1 6 . 3 4 4 . . 4 5 1 2 4 3 . . . . Peak Build Rating 113 | 9 9 8 14 41 45 44 41 50 51 52 71 81 80 97 98 97 97 74 98 113 94 94 77 34 90 Average Rating 59 | 5 7 7 12 33 41 39 36 46 46 47 66 77 74 92 93 92 85 68 85 95 84 80 63 34 61 On Entrance 53 | . 9 8 8 14 41 43 33 39 50 47 52 66 80 72 97 92 93 66 70 95 91 79 70 34 34 Naked Turns . | . . . . . . . . . . . . . . . . . . . . . . . . . . Heaviest Build 195 | 7 88 30 35 65 79 70 63 63 76 67 168 170 170 178 171 172 179 175 177 182 190 195 193 3 23 Greatest Support 230 | 40 40 40 40 80 80 80 68 85 85 75 178 206 206 230 230 230 230 131 225 225 204 154 123 3 140 Greatest Overweight (x) 8 | . 2 . . 7 . 1 1 . 1 1 . . . . . 1 1 1 8 1 1 1 6 . 1 Average Overweight (x) . | . . . . . . . . . . . . . . . . . . 1 . . . 1 . . . Largest Inventory Capacity 30 | 5 25 15 15 25 25 20 20 20 20 20 30 30 30 30 30 30 30 30 30 30 30 30 30 5 5 Average Capacity 24 | 5 10 15 15 24 21 20 20 20 20 20 28 30 30 30 30 30 30 30 30 30 30 30 26 5 5 Most Carried 30 | 2 11 15 15 25 25 20 20 20 20 18 30 29 30 29 28 28 30 30 30 30 21 22 27 5 5 Average Carried 21 | 1 6 14 14 22 20 19 19 19 19 16 25 28 29 26 27 24 27 29 28 25 18 18 20 4 4 Final Capacity 30 | 5 15 15 15 25 20 20 20 20 20 20 30 30 30 30 30 30 30 30 30 30 30 30 5 5 5 Final Carried 30 | 2 11 15 15 24 20 20 20 20 18 17 30 29 29 27 28 23 30 29 30 20 18 21 4 5 2 Class Distribution -------------------- 36% | Botlord-Mutant 24% | Bothacker-Mutant 20% | Mutant 10% | Scavenger-Mutant 5% | Commander-Mutant Dominant Class ---------------- Mutant | -10/Materials Mutant | -10/Mines Mutant | -10/Subcaves Mutant | -8/Materials Mutant | -8/Garrison Scavenger-Mutant | -8/Materials Scavenger-Mutant | -8/Garrison Scavenger-Mutant | -7/Factory Bothacker-Mutant | -7/Garrison Bothacker-Mutant | -7/Factory Bothacker-Mutant | -7/Garrison Botlord-Mutant | -6/Factory Bothacker-Mutant | -6/Extension Bothacker-Mutant | -6/Cetus Bothacker-Mutant | -6/Archives Bothacker-Mutant | -6/Hub_04(d) Bothacker-Mutant | -6/Garrison Botlord-Mutant | -5/Factory Botlord-Mutant | -5/Garrison Botlord-Mutant | -5/Factory Botlord-Mutant | -5/Garrison Botlord-Mutant | -4/Factory Botlord-Mutant | -4/Garrison Bothacker-Mutant | -4/Factory Bothacker-Mutant | -4/Garrison Resources | -11 -10 -10 -10 -8 -8 -8 -8 -7 -7 -7 -7 -6 -6 -6 -6 -6 -6 -5 -5 -5 -5 -4 -4 -4 -4 ----------- Run | Yrd Mat Min Sub Mat Gar Mat Gar Fac Gar Fac Gar Fac Ext Cet Arc Hub Gar Fac Gar Fac Gar Fac Gar Fac Gar Matter Collected 10727 | 286 173 54 471 576 488 520 310 631 510 268 612 178 389 159 165 163 408 158 1221 1102 682 530 456 . 217 Remotely 25 | 25 . . . . . . . . . . . . . . . . . . . . . . . . . Salvage Created 10856 | 89 259 132 541 534 703 1045 342 452 339 66 916 143 424 131 110 246 220 73 1297 726 908 515 365 . 280 Parts 508 | 5 11 10 46 26 32 44 27 16 10 6 34 5 16 5 10 13 11 1 60 24 29 28 14 . 25 Haulers Intercepted 6 | . 1 . . 1 . 1 . 2 . . . . . . . . . . . 1 . . . . . Recyclers Shooed 8 | 1 . . . . . 2 . 1 . . . . 1 . . . . . . 2 . 1 . . . Parts Field Recycled . | . . . . . . . . . . . . . . . . . . . . . . . . . . Retrieved Matter . | . . . . . . . . . . . . . . . . . . . . . . . . . . Parts Self-Destructed 13 | . . . 13 . . . . . . . . . . . . . . . . . . . . . . Prevented . | . . . . . . . . . . . . . . . . . . . . . . . . . . Kills | -11 -10 -10 -10 -8 -8 -8 -8 -7 -7 -7 -7 -6 -6 -6 -6 -6 -6 -5 -5 -5 -5 -4 -4 -4 -4 ------- Run | Yrd Mat Min Sub Mat Gar Mat Gar Fac Gar Fac Gar Fac Ext Cet Arc Hub Gar Fac Gar Fac Gar Fac Gar Fac Gar Combat Hostiles Destroyed 229 | . 4 5 18 9 15 19 12 5 9 3 9 4 7 1 1 7 6 2 18 18 22 13 10 . 12 Melee 34 | . . . . . 4 3 3 1 5 . . . 2 . . 1 1 . 2 2 7 . 3 . . Guns 75 | . 1 5 12 7 2 6 1 2 1 2 3 2 1 1 1 5 . . 8 4 4 3 2 . 2 Cannons 45 | . 3 . 6 . 3 2 5 1 1 1 5 2 . . . . 2 2 4 . 3 5 . . . AOE 41 | . . . . 2 4 4 . . . . . . . . . . . . 4 8 . 4 5 . 10 Classes Destroyed 20 | 2 4 1 1 2 1 3 2 . . . 1 . 1 . 1 . . . . 1 . . . . . Worker 6 | . 1 . . . . 1 . . . . . 1 . . . . . . . . . 3 . . . Builder 2 | . . . . . . 2 . . . . . . . . . . . . . . . . . . . Tunneler 4 | 2 1 . . . . . . . . . . . . . . . . . . . . 1 . . . Hauler 6 | . 1 . . 1 . 1 . 2 . . . . . . . . . . . 1 . . . . . Recycler 4 | 1 . . . 2 . 1 . . . . . . . . . . . . . . . . . . . Mechanic 1 | . . . . . . . . . . . . . . . . . . . . 1 . . . . . Operator 1 | . . . . . . . . . . . . . . . 1 . . . . . . . . . . Watcher 7 | . 1 . . . . 2 . 3 . . . . . . . . . . . . . 1 . . . Swarmer 58 | . . 3 6 . 3 . 5 . . 1 2 . . . . 4 1 . 10 3 10 4 . . 6 Cutter 9 | . . . . . . . . . . . 2 . . . . . . . . . . . 4 . 3 Grunt 61 | . 4 2 . 5 8 10 1 . 3 . 2 2 1 . . 1 . . 5 3 8 3 1 . 2 Brawler 3 | . . . . . . 1 . . . . . . . . . . . . . . 1 . 1 . . Duelist 5 | . . . . 1 . 2 . . . . . . . . . . . . 1 1 . . . . . Protector 1 | . . . . . . 1 . . . . . . . . . . . . . . . . . . . Sentry 32 | . . . . 3 3 5 1 4 . . 1 1 4 . 1 1 1 . . . 2 1 4 . . Specialist 3 | . . . . . 1 . . . . . . . . . . . . . . 1 . . . . 1 Hunter 16 | . . . . . . . 2 . 2 . . . 1 . . . 2 . 1 6 1 1 . . . Programmer 26 | . . . . . . . 3 1 4 2 2 1 . . . 1 2 2 . 4 . 4 . . . Behemoth 2 | . . . . . . . . . . . . . 1 . . . . . 1 . . . . . . Cetus Guard 1 | . . . . . . . . . . . . . . 1 . . . . . . . . . . . Subdweller 12 | . . . 12 . . . . . . . . . . . . . . . . . . . . . . Butcher 1 | . . . . . . . . . . . . . . 1 . . . . . . . . . . . Best Kill Streak 10 | 1 4 5 4 4 4 7 4 1 3 1 2 4 2 1 1 4 2 2 4 7 6 8 4 . 10 Combat Bots Only 10 | . 2 5 4 4 4 6 4 1 3 1 2 3 2 1 1 4 2 2 4 6 6 4 4 . 10 Max Kills in Single Turn 8 | 1 1 1 2 2 2 4 2 1 1 1 2 1 1 1 1 1 1 1 2 3 1 8 2 . 7 Gunslinging 1 | . . . 1 . . 1 . . . . . . . . . . . . . . . . . . . Exploded 7 | . . . . 2 1 3 . . . . . . . . . . . . 2 2 . 4 2 . 7 Melee 1 | . . . . . 1 1 1 1 1 . . . 1 . . 1 1 . 1 1 1 . 1 . . Uniques/NPCs Destroyed . | . . . . . . . . . . . . . . . . . . . . . . . . . . Combat | -11 -10 -10 -10 -8 -8 -8 -8 -7 -7 -7 -7 -6 -6 -6 -6 -6 -6 -5 -5 -5 -5 -4 -4 -4 -4 -------- Run | Yrd Mat Min Sub Mat Gar Mat Gar Fac Gar Fac Gar Fac Ext Cet Arc Hub Gar Fac Gar Fac Gar Fac Gar Fac Gar Hostile Shots Fired 2444 | . 22 18 72 40 99 117 66 162 222 59 74 43 234 5 11 112 73 42 114 228 146 101 146 5 233 Missed 733 | . 9 7 13 13 22 38 20 69 68 21 29 13 97 . 3 25 18 14 26 55 31 28 44 . 70 Hits 1711 | . 13 11 59 27 77 79 46 93 154 38 45 30 137 5 8 87 55 28 88 173 115 73 102 5 163 Melee 25 | . . . . . . 3 . . . . 3 . . . . . 3 . . . 2 . 5 1 8 Projectile 1686 | . 13 11 59 27 77 76 46 93 154 38 42 30 137 5 8 87 52 28 88 173 113 73 97 4 155 AOE 6 | . . . 5 . . . . . 1 . . . . . . . . . . . . . . . . Critical Strikes 66 | . . 1 . 1 2 2 . . 6 . . 1 1 4 . 6 2 . 2 11 1 2 10 1 13 Actively Blocked 13 | . . . . . . . . . . . . . . . . . . . . . . . . . 13 Part Disruptions 4 | . . . . . . . . . . . . . . . . 2 . . . . . . . . 2 Damage Taken 28275 | . 144 195 1106 487 1305 1349 701 740 2031 461 604 386 1074 225 187 1719 1145 505 1808 3796 1929 1664 2482 116 2116 Core 3443 | . . 8 155 76 83 139 23 53 278 82 41 37 113 . 74 95 104 27 273 545 84 125 623 36 369 Absorbed by Shields 1044 | . . . . . 35 . 8 . . . 32 . . . . 117 8 . 41 . 9 . 105 . 689 Reduced by Siege Mode 96 | . . . . . . . . . . . . . . 8 . 30 . . . 58 . . . . . Ignored by Resistances 111 | . . . . . . . . . 105 . . . . 6 . . . . . . . . . . . Regen/Repaired (Parts) 2969 | . . . . . . . . 235 118 395 . 430 443 . . . . 514 . 834 . . . . . Core Remaining (%) 44 | 100 . . 34 . . . 41 . . . 35 . . . . . 50 . . . 7 . . . . Volleys Fired 769 | 16 28 11 78 22 20 48 6 41 27 35 27 15 40 5 17 19 19 11 50 92 44 32 27 3 36 Largest 2 | 2 2 2 2 2 2 2 2 2 2 2 2 2 1 2 2 1 2 2 2 2 2 2 2 1 1 Hottest 88 | 60 80 40 63 61 77 65 74 65 65 65 65 65 33 70 70 35 88 88 79 86 79 88 79 5 46 Shots Fired 1113 | 32 56 22 133 42 36 77 12 69 28 46 37 28 41 10 25 19 33 15 72 103 50 52 35 3 37 Gun 589 | 32 28 22 107 41 5 67 2 29 6 11 20 13 11 5 16 12 10 . 39 37 19 18 17 . 22 Cannon 304 | . 28 . 26 1 26 8 10 28 1 13 14 13 . 5 . . 18 9 22 13 31 31 7 . . Launcher 34 | . . . . . 5 2 . . 3 . . . . . . . . . 5 9 . 1 5 . 4 Special 186 | . . . . . . . . 12 18 22 3 2 30 . 9 7 5 6 6 44 . 2 6 3 11 Kinetic 854 | 16 28 22 133 42 36 75 12 57 7 24 34 26 11 10 16 12 28 9 61 50 50 49 24 . 22 Thermal 44 | 16 28 . . . . . . . . . . . . . . . . . . . . . . . . Explosive 29 | . . . . . . 2 . . 3 . . . . . . . . . 5 9 . 1 5 . 4 Electromagnetic . | . . . . . . . . . . . . . . . . . . . . . . . . . . Robot Hit Streak 15 | 6 15 6 15 6 5 8 4 15 7 6 6 8 9 8 6 7 10 4 6 7 8 11 7 2 13 Robot Miss Streak 18 | 2 5 2 4 11 7 18 7 8 3 11 17 5 2 2 2 2 7 7 8 10 11 5 2 1 2 Penetration Max 1 | . . . . . . . . . . . . . . . . 1 . . 1 . 1 1 . . . Secondary Targets 4 | . . 1 1 1 . 1 . . . . . . . . . . . . . . . . . . . Max Gunslinging Chain 1 | . . 1 1 1 . 1 . . . . . . . . . . . . . . . . . . . Shots Hit Robots 1049 | 19 36 13 69 39 51 72 26 66 53 36 66 26 44 9 21 30 34 11 84 89 54 44 31 2 24 Core Hits 645 | 6 14 8 28 50 39 55 20 34 5 21 46 35 7 7 8 12 11 11 56 34 23 55 35 1 24 Critical Kills 17 | . . . . . . 1 . . . . . . 1 1 1 1 . . 1 . 8 3 . . . Critical Parts Destroyed 61 | . . . . . 2 7 4 1 8 . 1 . 3 . 1 3 2 . 2 14 9 3 . . 1 Critical Strikes 93 | . . . 1 . 6 8 4 3 8 . 3 . 5 1 2 6 2 . 5 14 17 6 1 . 1 Destroy 30 | . . . . . . 2 . . . . . . 1 1 2 1 . . 2 7 6 6 1 . 1 Blast 1 | . . . 1 . . . . . . . . . . . . . . . . . . . . . . Smash 53 | . . . . . 5 6 4 1 8 . 1 . 4 . . 3 2 . 1 7 11 . . . . Sever 9 | . . . . . 1 . . 2 . . 2 . . . . 2 . . 2 . . . . . . Melee Attacks 614 | . . . . . 71 34 62 16 96 1 48 . 21 . 2 26 38 15 66 47 56 2 11 . 2 Impact 464 | . . . . . 62 23 42 6 96 1 10 . 21 . . 16 38 15 31 47 56 . . . . Slashing 150 | . . . . . 9 11 20 10 . . 38 . . . 2 10 . . 35 . . 2 11 . 2 Piercing . | . . . . . . . . . . . . . . . . . . . . . . . . . . Sneak Attacks 24 | . . . . . . 4 2 2 1 . . . 4 . 2 . 5 . 1 1 . 1 1 . . Combat Hostiles 15 | . . . . . . . 2 . 1 . . . 4 . . . 5 . 1 1 . . 1 . . Follow-up Attacks 2 | . . . . . . . . . 2 . . . . . . . . . . . . . . . . Damage Inflicted 34109 | 174 544 135 1116 865 2009 2286 926 1325 1878 329 2510 513 1072 246 431 754 1033 223 3940 3814 2010 2144 2263 1 1568 Guns 8323 | 174 145 135 918 670 78 880 18 362 117 153 279 233 177 118 344 291 111 . 715 737 465 512 316 . 375 Cannons 4726 | . 363 . 198 . 391 115 136 457 15 176 212 280 . 128 . . 250 223 344 120 258 846 193 . 21 Explosions 6969 | . . . . 177 394 372 . . 60 . . . . . . . . . 607 1906 . 710 1571 . 1172 Melee 13908 | . . . . . 1146 919 765 497 1686 . 2019 . 807 . 87 455 672 . 2274 1045 1287 66 183 . . Ramming 183 | . 36 . . 18 . . 7 9 . . . . 88 . . 8 . . . 6 . 10 . 1 . Kinetic 12973 | 88 145 135 1116 670 863 995 154 819 132 329 491 513 177 246 344 291 361 223 1059 857 723 1358 509 . 375 Thermal 626 | 86 363 . . 177 . . . . . . . . . . . . . . . . . . . . . Explosive 6398 | . . . . . . 372 . . 60 . . . . . . . . . 607 1906 . 710 1571 . 1172 Electromagnetic . | . . . . . . . . . . . . . . . . . . . . . . . . . . Impact 8114 | . . . . . 779 659 395 184 1686 . 45 . 807 . . 319 672 . 215 1045 1287 . . . 21 Slashing 5815 | . . . . . 367 260 370 313 . . 1974 . . . 87 136 . . 2059 . . 66 183 . . Piercing . | . . . . . . . . . . . . . . . . . . . . . . . . . . Highest Corruption 18 | . . . . 1 1 3 5 3 3 5 5 1 1 1 1 11 14 7 12 18 18 3 3 3 4 Average Corruption 5 | . . . . 1 1 2 3 2 3 4 5 1 1 1 1 1 11 6 10 13 18 2 3 3 3 Corruption Purged . | . . . . . . . . . . . . . . . . . . . . . . . . . . Corruption Blocked 8 | . . . . . . . . . 8 . . . . . . . . . . . . . . . . Effects 419 | . . . . 2 8 10 19 22 28 22 21 2 11 8 . 3 25 14 62 98 42 4 12 1 5 Message Errors 103 | . . . . . 3 1 3 7 5 5 8 . . 1 . 1 7 4 16 27 12 . 3 . . Matter Fused 107 | . . . . . 2 4 5 3 8 8 2 . 2 2 . 1 8 1 21 22 8 2 5 1 2 Heat Flow Errors 50 | . . . . . 1 1 4 2 2 1 4 1 4 . . . 4 4 6 9 6 . . . 1 Energy Discharges 49 | . . . . . . 2 1 2 4 2 3 1 1 2 . . 1 2 7 15 4 1 1 . . Parts Rejected 10 | . . . . 1 . . . 1 . 1 1 . . . . . 1 . 1 . 4 . . . . Parts Fused 2 | . . . . . . . . . . 1 . . . . . . . . . 1 . . . . . Data Loss (minor) 54 | . . . . . . . 3 4 6 4 3 . 2 3 . 1 . 1 6 14 4 . 2 . 1 Data Loss (major) 13 | . . . . . 1 . 1 . 3 . . . 1 . . . 2 . 1 2 . 1 1 . . Misfires 13 | . . . . 1 . . 1 2 . . . . 1 . . . 1 . . 4 2 . . . 1 Alerts 9 | . . . . . . 1 1 1 . . . . . . . . . 2 2 2 . . . . . Misdirections 3 | . . . . . . . . . . . . . . . . . . . . 1 2 . . . . Weapon Failures 6 | . . . . . 1 1 . . . . . . . . . . 1 . 2 1 . . . . . Overload Shots . | . . . . . . . . . . . . . . . . . . . . . . . . . . Overflow Damage 3458 | . . . . 35 147 416 337 36 570 . 65 . 269 . 7 99 234 . 71 532 482 48 23 . 87 Projectiles 19 | . . . . . . . . . 2 . . . . . . . . . . . 10 7 . . . Explosions 195 | . . . . 35 26 . . . . . . . . . . . . . . 19 . 5 23 . 87 Melee 3244 | . . . . . 121 416 337 36 568 . 65 . 269 . 7 99 234 . 71 513 472 36 . . . Knockbacks 94 | . . . 3 . 9 5 2 8 11 5 4 6 2 . . . 6 . 5 7 7 14 . . . Impact 27 | . . . . . 2 2 1 . 8 . . . 2 . . . 1 . . 7 4 . . . . Kinetic 62 | . . . 3 . 7 3 1 8 . 5 4 6 . . . . 5 . 5 . 2 13 . . . Secondary 5 | . . . . . . . . . 3 . . . . . . . . . . . 1 1 . . . Self-Inflicted Damage 536 | . . . . 57 70 . . . 10 . . . . . . . . . 56 . . . 264 . 79 Shots 11 | . . . . 1 2 . . . 1 . . . . . . . . . 2 . . . 4 . 1 Rammed 14 | . 4 . . 1 . . . . . . . . 3 . . 2 . . . 1 . 2 . 1 . Targets Rammed 22 | . 5 . . 5 1 . 1 1 . . . . 3 . . 2 . . . 1 . 2 . 1 . Kicked 6 | . . . . 3 1 . 1 1 . . . . . . . . . . . . . . . . . Crushed 2 | . 1 . . 1 . . . . . . . . . . . . . . . . . . . . . Highest Temperature 313 | 40 248 28 . 126 254 249 223 199 254 141 217 200 194 . 4 8 277 195 256 261 313 170 . . 190 Average Temperature 79 | 20 104 12 . 44 80 33 69 64 98 81 68 38 81 . 4 4 135 64 90 78 107 85 . . 117 Received Heat Transfer 5471 | . 78 57 84 171 536 603 49 204 498 51 98 141 270 36 36 133 55 48 625 432 367 204 478 21 196 Effects 1 | . . . . . . . . . . . . . . . . . . . . . 1 . . . . Energy Bleed 1 | . . . . . . . . . . . . . . . . . . . . . 1 . . . . Siege Activations 5 | . . . . . . . . . . . . . . 1 . 1 . . 2 1 . . . . . Total Turns 64 | . . . . . . . . . . . . . . 16 . 14 . . 14 20 . . . . . Longest Duration 20 | . . . . . . . . . . . . . . 16 . 14 . . 9 20 . . . . . Martial Activations . | . . . . . . . . . . . . . . . . . . . . . . . . . . Shielding Activations . | . . . . . . . . . . . . . . . . . . . . . . . . . . Robots Disrupted . | . . . . . . . . . . . . . . . . . . . . . . . . . . Combat Hostiles . | . . . . . . . . . . . . . . . . . . . . . . . . . . Robots Corrupted 34 | . . . . . 2 5 3 1 2 . 1 . 4 . . 1 3 . . 4 8 . . . . Combat Hostiles 33 | . . . . . 2 4 3 1 2 . 1 . 4 . . 1 3 . . 4 8 . . . . Parts Fried 43 | . . . . . 1 6 4 . 5 . 3 . 3 . . 1 3 . 1 3 12 1 . . . Impact Corruptions 108 | . 1 . . . 6 12 7 1 21 . 1 . 12 . . 5 8 . 2 17 15 . . . . Robots Melted . | . . . . . . . . . . . . . . . . . . . . . . . . . . Combat Hostiles . | . . . . . . . . . . . . . . . . . . . . . . . . . . Parts Melted 3 | . . . 1 . 1 . 1 . . . . . . . . . . . . . . . . . . Heat Transferred 1127 | 200 777 . . 150 . . . . . . . . . . . . . . . . . . . . . Parts Sabotaged 3 | . . . . . . . . . . . . . . . . . . . . . 3 . . . . Parts Stolen . | . . . . . . . . . . . . . . . . . . . . . . . . . . Parts Stripped . | . . . . . . . . . . . . . . . . . . . . . . . . . . Power Chain Reactions . | . . . . . . . . . . . . . . . . . . . . . . . . . . Alert | -11 -10 -10 -10 -8 -8 -8 -8 -7 -7 -7 -7 -6 -6 -6 -6 -6 -6 -5 -5 -5 -5 -4 -4 -4 -4 ------- Run | Yrd Mat Min Sub Mat Gar Mat Gar Fac Gar Fac Gar Fac Ext Cet Arc Hub Gar Fac Gar Fac Gar Fac Gar Fac Gar Maximum Alert Level 4 | . . . . . 4 3 3 2 3 2 2 1 . . . . 2 1 2 1 2 1 1 . 1 Low Security (%) 63 | 100 100 100 . 100 8 . . 85 25 14 40 87 100 100 100 100 56 87 57 91 40 86 42 100 87 Level 1 14 | . . . . . 18 . . 6 23 36 42 12 . . . . 34 12 15 8 25 13 57 . 12 Level 2 9 | . . . . . 10 5 14 7 18 49 17 . . . . . 8 . 26 . 33 . . . . Level 3 10 | . . . . . 22 94 85 . 32 . . . . . . . . . . . . . . . . Level 4 2 | . . . . . 39 . . . . . . . . . . . . . . . . . . . . Level 5 . | . . . . . . . . . . . . . . . . . . . . . . . . . . High Security . | . . . . . . . . . . . . . . . . . . . . . . . . . . Max Security . | . . . . . . . . . . . . . . . . . . . . . . . . . . Peak Influence 1477 | 5 50 110 . 192 1477 1015 1071 551 932 584 449 235 70 27 62 79 486 254 640 336 515 270 266 136 310 Initial 711 | . . . . . 114 711 642 551 38 489 47 235 8 4 . . 36 254 41 336 69 270 16 136 . Average 244 | 1 8 37 . 28 836 851 862 127 468 373 233 41 13 4 23 22 208 80 237 78 292 102 154 72 106 Influence Increases 10946 | 15 173 120 155 423 1455 758 559 302 1074 257 482 194 511 111 107 235 520 164 822 711 506 427 464 11 390 Destroy 0b10 Robot/C 5165 | . 80 100 120 180 740 420 300 165 375 150 210 105 285 60 60 105 150 75 300 300 330 225 150 . 180 Destroy 0b10 Robot/NC 229 | 15 20 . . 15 10 45 . 20 4 . 24 4 8 4 4 4 . . 24 8 . 20 . . . Destroy Leader 754 | . 24 20 20 52 30 128 24 66 24 40 24 24 34 . . 32 24 16 32 42 40 42 8 . 8 Allied During Kill 919 | . . . . . 123 23 63 30 113 66 44 22 93 35 21 14 92 36 37 58 . 47 2 . . Successful Hack 410 | . 19 . . 35 24 22 17 6 12 . 6 39 39 12 . 18 . 15 11 115 . 9 . 11 . Select Force Hacks 68 | . 30 . . . . . . . . . . . . . . 38 . . . . . . . . . Disable Machine 342 | . . . . 15 15 60 . 12 36 . 24 . 24 . 12 12 . . 12 12 . 48 12 . 48 Anti-Garrison Action 1563 | . . . . . 350 . 76 . 379 . 114 . . . . . 190 . 302 . 76 . 38 . 38 Destroy Structure 1067 | . . . . 36 133 30 79 3 131 1 36 . 16 . 10 12 52 22 104 164 36 24 110 . 68 Partial Spotted 12 | . . . . . . . . . . . . . . . . . . . . . . . 12 . . Lose Combat Pursuer 417 | . . . 15 90 30 30 . . . . . . 12 . . . 12 . . 12 24 12 132 . 48 Influence Decreases 10706 | 15 171 92 185 247 172 1228 497 1298 197 1121 101 625 521 119 107 183 86 591 241 1252 90 918 228 270 151 Entered New Map 3362 | . . 2 16 . 62 748 347 500 17 443 21 214 10 4 . . 16 232 18 304 30 245 8 124 1 Time Decay 3989 | 15 161 90 159 227 . 310 . 473 . 458 . 205 283 52 87 133 . 329 . 534 . 453 . 20 . Lost Part 831 | . 10 . 10 20 10 70 50 20 80 10 . . 10 . . . 30 10 61 50 60 80 140 . 110 Lost Ally 1699 | . . . . . 100 100 100 30 100 60 80 56 218 63 20 50 40 20 162 240 . 140 80 . 40 Purge Threat 825 | . . . . . . . . 275 . 150 . 150 . . . . . . . 124 . . . 126 . Squads Dispatched 48 | . 3 . . 4 . 5 . 6 . 6 . 4 2 . . 7 . 2 . 7 . 2 . . . Investigation 11 | . 1 . . . . 3 . 1 . . . 2 1 . . 3 . . . . . . . . . Extermination 16 | . . . . . . . . 3 . 2 . 1 . . . 1 . 2 . 5 . 2 . . . Reinforcement 16 | . 2 . . 2 . 1 . 1 . 3 . 1 1 . . 3 . . . 2 . . . . . Assault 1 | . . . . . . 1 . . . . . . . . . . . . . . . . . . . Garrison 4 | . . . . 2 . . . 1 . 1 . . . . . . . . . . . . . . . Intercept . | . . . . . . . . . . . . . . . . . . . . . . . . . . Searches Triggered . | . . . . . . . . . . . . . . . . . . . . . . . . . . Construction Impeded . | . . . . . . . . . . . . . . . . . . . . . . . . . . Haulers Reinforced 4 | . . . . . . . . 1 . 2 . . . . . . . . . 1 . . . . . Active Scanning Responses . | . . . . . . . . . . . . . . . . . . . . . . . . . . Cargo Convoy Interrupts 1 | . . . . . . . . . . . . . . . . . . . . 1 . . . . . Alert ID Control Effect 65 | . . . . . . . . . . 5 9 . . . . 2 7 1 12 24 . 2 2 . 1 Stealth | -11 -10 -10 -10 -8 -8 -8 -8 -7 -7 -7 -7 -6 -6 -6 -6 -6 -6 -5 -5 -5 -5 -4 -4 -4 -4 --------- Run | Yrd Mat Min Sub Mat Gar Mat Gar Fac Gar Fac Gar Fac Ext Cet Arc Hub Gar Fac Gar Fac Gar Fac Gar Fac Gar Distress Signals 20 | . 2 . . 4 . 3 . 2 . 1 . 1 1 1 . 3 . . . 2 . . . . . Communications Jammed 255 | . . . . . . . . . . 7 . . . . . 74 . 3 . 151 . 20 . . . Distress Signals 245 | . . . . . . . . . . 2 . . . . . 73 . 1 . 150 . 19 . . . Times Spotted 566 | . 13 8 20 20 40 29 19 23 33 24 25 5 25 6 4 30 20 10 33 67 27 23 29 4 29 Peak Tracking Total 17 | . 3 3 3 5 6 6 3 3 5 4 4 5 7 5 2 7 6 3 4 9 6 4 11 3 17 Tactical Retreats 17 | . . . 1 3 1 1 . . . . . . 1 . . . 1 . . 1 1 1 4 . 2 Traps | -11 -10 -10 -10 -8 -8 -8 -8 -7 -7 -7 -7 -6 -6 -6 -6 -6 -6 -5 -5 -5 -5 -4 -4 -4 -4 ------- Run | Yrd Mat Min Sub Mat Gar Mat Gar Fac Gar Fac Gar Fac Ext Cet Arc Hub Gar Fac Gar Fac Gar Fac Gar Fac Gar Traps Triggered 29 | . 3 . 1 1 3 2 1 2 3 . . . . . . . 2 1 4 1 2 . 2 1 . Indirectly . | . . . . . . . . . . . . . . . . . . . . . . . . . . Trap Hack Attempts . | . . . . . . . . . . . . . . . . . . . . . . . . . . Triggered . | . . . . . . . . . . . . . . . . . . . . . . . . . . Disarmed . | . . . . . . . . . . . . . . . . . . . . . . . . . . Reprogrammed . | . . . . . . . . . . . . . . . . . . . . . . . . . . Reused . | . . . . . . . . . . . . . . . . . . . . . . . . . . Traps Extracted . | . . . . . . . . . . . . . . . . . . . . . . . . . . Installed . | . . . . . . . . . . . . . . . . . . . . . . . . . . Triggered . | . . . . . . . . . . . . . . . . . . . . . . . . . . Most Traps Carried 5 | . . 5 5 5 . . . . . . . . . . . . . . . . . . . . . Machines | -11 -10 -10 -10 -8 -8 -8 -8 -7 -7 -7 -7 -6 -6 -6 -6 -6 -6 -5 -5 -5 -5 -4 -4 -4 -4 ---------- Run | Yrd Mat Min Sub Mat Gar Mat Gar Fac Gar Fac Gar Fac Ext Cet Arc Hub Gar Fac Gar Fac Gar Fac Gar Fac Gar Machines Disabled 59 | . . . . 1 7 4 2 1 12 . 5 . 2 . 1 1 5 . 5 1 1 4 2 . 5 Max in Single Turn 2 | . . . . 1 1 . 1 1 2 . 1 . 1 . 1 . 1 . 1 1 1 2 1 . 1 Garrison Access 3 | . . . . . . . . . . 1 . 1 . . . . . . . 1 . . . . . Garrison Relay 30 | . . . . . 5 . 2 . 8 . 3 . . . . . 5 . 4 . 1 . 1 . 1 Network Hub 1 | . . . . . . . . . . . . . . . . 1 . . . . . . . . . Machines Repaired . | . . . . . . . . . . . . . . . . . . . . . . . . . . Machines Dismantled . | . . . . . . . . . . . . . . . . . . . . . . . . . . Machines Sabotaged 1 | . . . . . . . . . . . . . . . . 1 . . . . . . . . . Overloaded Fab Kills . | . . . . . . . . . . . . . . . . . . . . . . . . . . Hacking | -11 -10 -10 -10 -8 -8 -8 -8 -7 -7 -7 -7 -6 -6 -6 -6 -6 -6 -5 -5 -5 -5 -4 -4 -4 -4 --------- Run | Yrd Mat Min Sub Mat Gar Mat Gar Fac Gar Fac Gar Fac Ext Cet Arc Hub Gar Fac Gar Fac Gar Fac Gar Fac Gar Machines Accessed 90 | . 7 . . 6 3 5 2 5 2 6 2 7 14 3 . 5 . 2 2 12 2 3 . 2 . Terminals 65 | . 6 . . 5 3 4 2 3 2 1 2 3 12 3 . 4 . . 2 9 2 1 . 1 . Fabricators 4 | . . . . . . . . . . 1 . 2 . . . . . . . . . 1 . . . Repair Stations 4 | . . . . . . . . . . 1 . . 1 . . . . 1 . 1 . . . . . Recycling Units 4 | . 1 . . . . . . . . 1 . 1 1 . . . . . . . . . . . . Scanalyzers 1 | . . . . . . . . 1 . . . . . . . . . . . . . . . . . Garrison Access 12 | . . . . 1 . 1 . 1 . 2 . 1 . . . 1 . 1 . 2 . 1 . 1 . Total Hacks 248 | . 20 . . 19 7 20 5 15 3 17 4 21 28 5 . 12 . 5 6 48 3 8 . 2 . Successful 136 | . 9 . . 10 3 13 2 10 2 11 2 13 19 3 . 8 . 3 1 23 . 2 . 2 . Failed 111 | . 10 . . 9 4 7 3 5 1 6 2 8 9 2 . 4 . 2 5 25 3 6 . . . Catastrophic 23 | . 1 . . . . 1 1 2 1 1 2 1 . 1 . 1 . 1 1 4 2 3 . . . Database Lockouts 1 | . 1 . . . . . . . . . . . . . . . . . . . . . . . . Manual 153 | . 17 . . 16 2 19 2 8 1 8 2 8 20 . . 10 . 2 . 30 . 7 . 1 . Terminals 175 | . 19 . . 17 7 18 5 8 3 2 4 6 26 5 . 9 . . 6 35 3 1 . 1 . Fabricators 13 | . . . . . . . . . . 1 . 9 . . . . . . . . . 3 . . . Repair Stations 14 | . . . . . . . . . . 4 . . 1 . . . . 3 . 6 . . . . . Recycling Units 7 | . 1 . . . . . . . . 3 . 2 1 . . . . . . . . . . . . Scanalyzers 5 | . . . . . . . . 5 . . . . . . . . . . . . . . . . . Garrison Access 34 | . . . . 2 . 2 . 2 . 7 . 4 . . . 3 . 2 . 7 . 4 . 1 . Terminal Hacks 46 | . 2 . . 4 3 6 2 1 2 . 2 3 8 3 . 3 . . 1 6 . . . . . Record 2 | . . . . . . . . . . . . . . 2 . . . . . . . . . . . Part Schematic 1 | . . . . . . . . . . . . . 1 . . . . . . . . . . . . Robot Schematic 1 | . . . . . . . . . . . . 1 . . . . . . . . . . . . . Robot Analysis 7 | . 1 . . 2 . 3 . 1 . . . . . . . . . . . . . . . . . Open Door 7 | . . . . . . . . . 1 . . 1 4 1 . . . . . . . . . . . Branch Access Points 1 | . . . . . . . . . . . . . . . . . . . . 1 . . . . . Emergency Access Points 4 | . . . . . 1 . 1 . 1 . 1 . . . . . . . . . . . . . . Terminal Index 5 | . . . . 1 . 1 . . . . . . 1 . . 1 . . . 1 . . . . . Garrison Index 1 | . . . . . . . . . . . . . . . . 1 . . . . . . . . . Unreport Threat 2 | . . . . . . . . . . . . 1 . . . . . . . 1 . . . . . Zone Layout 10 | . 1 . . 1 . 2 . . . . . . 2 . . 1 . . . 3 . . . . . Garrison Registry 1 | . . . . . 1 . . . . . . . . . . . . . . . . . . . . Patrol Navigation 3 | . . . . . 1 . 1 . . . 1 . . . . . . . . . . . . . . Security Stations 1 | . . . . . . . . . . . . . . . . . . . 1 . . . . . . Fabricator Hacks 6 | . . . . . . . . . . 1 . 5 . . . . . . . . . . . . . Network Status 1 | . . . . . . . . . . 1 . . . . . . . . . . . . . . . Load Schematic 2 | . . . . . . . . . . . . 2 . . . . . . . . . . . . . Build 3 | . . . . . . . . . . . . 3 . . . . . . . . . . . . . Repair Station Hacks 10 | . . . . . . . . . . 4 . . . . . . . 2 . 4 . . . . . Scan Component 5 | . . . . . . . . . . 2 . . . . . . . 1 . 2 . . . . . Repair 5 | . . . . . . . . . . 2 . . . . . . . 1 . 2 . . . . . Recycling Unit Hacks 1 | . . . . . . . . . . 1 . . . . . . . . . . . . . . . Report Inventory 1 | . . . . . . . . . . 1 . . . . . . . . . . . . . . . Scanalyzer 5 | . . . . . . . . 5 . . . . . . . . . . . . . . . . . Insert Component 2 | . . . . . . . . 2 . . . . . . . . . . . . . . . . . Analyze 3 | . . . . . . . . 3 . . . . . . . . . . . . . . . . . Garrison Access Hacks 15 | . . . . 1 . 1 . 1 . 3 . 2 . . . 1 . 1 . 3 . 1 . 1 . Unlock Access 12 | . . . . 1 . 1 . 1 . 2 . 1 . . . 1 . 1 . 2 . 1 . 1 . Seal Access 3 | . . . . . . . . . . 1 . 1 . . . . . . . 1 . . . . . Unauthorized Hacks 52 | . 6 . . 5 . 6 . 3 . 2 . 3 11 . . 4 . . . 10 . 1 . 1 . Terminals 42 | . 5 . . 5 . 5 . 3 . 1 . 2 9 . . 3 . . . 8 . . . 1 . Botnet 38 | . 5 . . 5 . 4 . 3 . 1 . 2 8 . . 2 . . . 7 . . . 1 . Operators 2 | . . . . . . . . . . . . . 1 . . . . . . 1 . . . . . Sabotage 1 | . . . . . . . . . . . . . . . . 1 . . . . . . . . . Search 1 | . . . . . . 1 . . . . . . . . . . . . . . . . . . . Fabricators 1 | . . . . . . . . . . . . . . . . . . . . . . 1 . . . Liberate 1 | . . . . . . . . . . . . . . . . . . . . . . 1 . . . Repair Stations 2 | . . . . . . . . . . . . . 1 . . . . . . 1 . . . . . Mechanics 2 | . . . . . . . . . . . . . 1 . . . . . . 1 . . . . . Recycling Units 4 | . 1 . . . . . . . . 1 . 1 1 . . . . . . . . . . . . Recyclers 3 | . . . . . . . . . . 1 . 1 1 . . . . . . . . . . . . Tunnel 1 | . 1 . . . . . . . . . . . . . . . . . . . . . . . . Scanalyzers . | . . . . . . . . . . . . . . . . . . . . . . . . . . Garrison Access 3 | . . . . . . 1 . . . . . . . . . 1 . . . 1 . . . . . Reprogram 3 | . . . . . . 1 . . . . . . . . . 1 . . . 1 . . . . . Data Cores Recovered . | . . . . . . . . . . . . . . . . . . . . . . . . . . Used . | . . . . . . . . . . . . . . . . . . . . . . . . . . Hacking Detections 78 | . 6 . . 6 3 5 2 4 2 5 2 7 8 2 . 5 . 2 2 11 2 3 . 1 . Full Trace Events 7 | . 1 . . . . . . . . . . 2 1 . . 2 . . . . 1 . . . . Feedback Events . | . . . . . . . . . . . . . . . . . . . . . . . . . . Feedback Blocked . | . . . . . . . . . . . . . . . . . . . . . . . . . . Robot Schematics Acquired 1 | . . . . . . . . . . . . 1 . . . . . . . . . . . . . Robots Built 6 | . . . . . . . . . . . . 6 . . . . . . . . . . . . . Authchips . | . . . . . . . . . . . . . . . . . . . . . . . . . . Time 241 | . . . . . . . . . . . . 241 . . . . . . . . . . . . . Total Robot Build Rating 22 | . . . . . . . . . . . . 22 . . . . . . . . . . . . . Part Schematics Acquired 3 | . . . . . . . . 2 . . . . 1 . . . . . . . . . . . . Parts Built . | . . . . . . . . . . . . . . . . . . . . . . . . . . Authchips . | . . . . . . . . . . . . . . . . . . . . . . . . . . Time . | . . . . . . . . . . . . . . . . . . . . . . . . . . Total Part Build Rating . | . . . . . . . . . . . . . . . . . . . . . . . . . . Parts Repaired 5 | . . . . . . . . . . 2 . . . . . . . 1 . 2 . . . . . Time 243 | . . . . . . . . . . 88 . . . . . . . 31 . 124 . . . . . Parts Recycled . | . . . . . . . . . . . . . . . . . . . . . . . . . . Recycled Matter . | . . . . . . . . . . . . . . . . . . . . . . . . . . Retrieved Matter . | . . . . . . . . . . . . . . . . . . . . . . . . . . Retrieved Components . | . . . . . . . . . . . . . . . . . . . . . . . . . . Parts Scanalyzed 2 | . . . . . . . . 2 . . . . . . . . . . . . . . . . . Part Schematics Acquired 2 | . . . . . . . . 2 . . . . . . . . . . . . . . . . . Parts Damaged . | . . . . . . . . . . . . . . . . . . . . . . . . . . Bothacking | -11 -10 -10 -10 -8 -8 -8 -8 -7 -7 -7 -7 -6 -6 -6 -6 -6 -6 -5 -5 -5 -5 -4 -4 -4 -4 ------------ Run | Yrd Mat Min Sub Mat Gar Mat Gar Fac Gar Fac Gar Fac Ext Cet Arc Hub Gar Fac Gar Fac Gar Fac Gar Fac Gar Used RIF Installer 8 | . . . . . 1 . 1 . 1 . 1 . . . . . 1 . 1 . 1 . 1 . . Coupler Efficiency 1 | . . . . . . . . . . . 1 . . . . . . . . . . . . . . Threat Obfuscator 1 | . . . . . . . 1 . . . . . . . . . . . . . . . . . . Alert ID Control 1 | . . . . . . . . . 1 . . . . . . . . . . . . . . . . Structural Interface 1 | . . . . . . . . . . . . . . . . . . . . . 1 . . . . Program Shield 1 | . . . . . . . . . . . . . . . . . . . 1 . . . . . . Autoassimilate 2 | . . . . . . . . . . . . . . . . . 1 . . . . . 1 . . Robots Hacked 108 | . . . . . . . . 6 12 12 3 2 9 . 5 5 5 4 4 30 . 2 5 1 3 Non-combat 22 | . . . . . . . . 2 . 2 . 1 5 . 5 . . . . 6 . . . 1 . Combat 86 | . . . . . . . . 4 12 10 3 1 4 . . 5 5 4 4 24 . 2 5 . 3 Autoassimilated 4 | . . . . . . . . . . . . . . . . . . . 1 2 . . 1 . . Robot Hacks Applied 124 | . . . . . . . . 12 13 16 3 2 10 . 6 5 5 4 3 33 . 2 5 2 3 parse_system 4 | . . . . . . . . 1 . . . . 1 . 1 . . . . 1 . . . . . no_distress 1 | . . . . . . . . . . . . 1 . . . . . . . . . . . . . deconstruct_machine 2 | . . . . . . . . . . . . . 2 . . . . . . . . . . . . ignore_repairs 1 | . . . . . . . . . . . . . . . . . . . . 1 . . . . . map_walls 1 | . . . . . . . . . . . . . . . . . . . . 1 . . . . . find_fabricator 1 | . . . . . . . . . . 1 . . . . . . . . . . . . . . . find_dsf 1 | . . . . . . . . . . 1 . . . . . . . . . . . . . . . deconstruct_bot 1 | . . . . . . . . . . . . . . . . . . . . 1 . . . . . purge_threat 4 | . . . . . . . . 2 . 1 . . . . . . . . . . . . . 1 . find_terminals 1 | . . . . . . . . . . 1 . . . . . . . . . . . . . . . reprogram_traps 1 | . . . . . . . . 1 . . . . . . . . . . . . . . . . . block_reporting 4 | . . . . . . . . 1 . . . . 1 . . . . . . 1 . . . 1 . scatter_targeting 2 | . . . . . . . . . . . . . . . . . . . . 2 . . . . . link_complan 1 | . . . . . . . . . 1 . . . . . . . . . . . . . . . . spike_heat 4 | . . . . . . . . 1 . 2 . . . . . . . . . 1 . . . . . overload_power 3 | . . . . . . . . . 1 . . . . . . . . . . 1 . . . . 1 disable_weapons 1 | . . . . . . . . . . . . . . . . . . . . 1 . . . . . reboot_system 9 | . . . . . . . . . 1 3 . . 1 . . . 1 . 1 2 . . . . . go_dormant 1 | . . . . . . . . . . 1 . . . . . . . . . . . . . . . overwrite_iff 14 | . . . . . . . . . 2 1 1 . . . . 1 . . . 4 . . 4 . 1 formatsys_low 14 | . . . . . . . . 2 1 1 . . 3 . 5 . . . . 2 . . . . . formatsys_high 53 | . . . . . . . . 4 7 4 2 1 2 . . 4 4 4 2 15 . 2 1 . 1 Relay Couplers Released 120 | . . . . . 18 . 9 . 29 . 11 . . . . . 19 . 21 . 3 . 5 . 5 Machine Destruction 117 | . . . . . 18 . 9 . 29 . 11 . . . . . 19 . 18 . 3 . 5 . 5 Programmers 3 | . . . . . . . . . . . . . . . . . . . 3 . . . . . . Attached 44 | . . . . . . . 2 3 6 3 2 1 2 . 1 1 3 3 4 7 . 1 2 . 3 Fabnet Peak Effective % . | . . . . . . . . . . . . . . . . . . . . . . . . . . Robots Rewired 34 | . . . . . 10 . 3 . 2 . . . 15 . . . 4 . . . . . . . . Allies Hacked 13 | . . . . . . . 1 1 5 1 3 . 1 . . . 1 . . . . . . . . Hacks Repelled . | . . . . . . . . . . . . . . . . . . . . . . . . . . Allies | -11 -10 -10 -10 -8 -8 -8 -8 -7 -7 -7 -7 -6 -6 -6 -6 -6 -6 -5 -5 -5 -5 -4 -4 -4 -4 -------- Run | Yrd Mat Min Sub Mat Gar Mat Gar Fac Gar Fac Gar Fac Ext Cet Arc Hub Gar Fac Gar Fac Gar Fac Gar Fac Gar Total Allies 132 | . . . . . 10 3 3 5 11 6 3 7 25 . 5 5 8 4 3 23 . 4 5 . 2 Largest Group 9 | . . . . . 5 5 5 3 7 7 7 8 9 9 8 8 7 9 9 9 . 4 1 . 1 Highest-Rated Group 353 | . . . . . 81 79 62 68 148 204 204 161 313 267 312 312 309 334 334 353 . 206 116 . 54 Highest-Rated Ally 142 | . . . . . 21 21 16 32 32 32 32 41 85 39 45 45 99 89 49 142 . 54 116 . 54 Total Orders 43 | . . . . . . . . 3 9 5 2 5 3 . . . . 4 . 8 . 4 . . . STAY 13 | . . . . . . . . 1 3 1 1 2 . . . . . 2 . 3 . . . . . ROAM 1 | . . . . . . . . . . . . . . . . . . . . . . 1 . . . FOLLOW 12 | . . . . . . . . 1 2 1 1 1 . . . . . 2 . 4 . . . . . AID 14 | . . . . . . . . 1 4 3 . 2 3 . . . . . . 1 . . . . . EXPLORE 3 | . . . . . . . . . . . . . . . . . . . . . . 3 . . . Ally Attacks 1031 | . . . . . 91 48 65 48 115 48 31 19 108 48 18 49 60 13 71 155 . 27 14 . 3 Total Damage 21988 | . . . . . 1863 691 796 629 2035 1143 1043 247 2040 903 300 801 1802 321 2668 2907 . 1129 571 . 99 Kills 179 | . . . . . 22 4 8 6 18 13 14 3 17 4 3 3 11 4 15 26 . 5 2 . 1 Allies Corrupted 3 | . . . . . . . . . . . 1 1 . . . . . . . . . 1 . . . Allies Melted . | . . . . . . . . . . . . . . . . . . . . . . . . . . Intel | -11 -10 -10 -10 -8 -8 -8 -8 -7 -7 -7 -7 -6 -6 -6 -6 -6 -6 -5 -5 -5 -5 -4 -4 -4 -4 ------- Run | Yrd Mat Min Sub Mat Gar Mat Gar Fac Gar Fac Gar Fac Ext Cet Arc Hub Gar Fac Gar Fac Gar Fac Gar Fac Gar Active Infowar (turns) 12336 | 15 276 . . 462 1022 . . 76 44 1141 640 . . . . 337 591 971 1646 2621 424 1252 568 . 250 Optics 250 | . . . . . . . . . . . . . . . . . . . . . . . . . 250 Sensors 76 | . . . . . . . . 76 . . . . . . . . . . . . . . . . . A.S.S. 161 | . . . . . . . . . . . . . . . . . . . . 161 . . . . . Terrain 291 | 15 276 . . . . . . . . . . . . . . . . . . . . . . . . T.N.C. 25 | . . . . . . . . . . . . . . . . . . . . 25 . . . . . Machine Analysis 1484 | . . . . 462 1022 . . . . . . . . . . . . . . . . . . . . Jamming 10438 | . . . . . . . . . 44 1141 640 . . . . 337 591 971 1646 2621 424 1252 568 . 203 Robot Analysis Total 7 | . 1 . . 2 . 3 . 1 . . . . . . . . . . . . . . . . . Derelict Logs Recovered 2 | . . . 2 . . . . . . . . . . . . . . . . . . . . . . Drone Launches 13 | . . . . . . . . . . . . . . . . . . . . . . 13 . . . Drone Recoveries 5 | . . . . . . . . . . . . . . . . . . . . . . 5 . . . Exploration | -11 -10 -10 -10 -8 -8 -8 -8 -7 -7 -7 -7 -6 -6 -6 -6 -6 -6 -5 -5 -5 -5 -4 -4 -4 -4 ------------- Run | Yrd Mat Min Sub Mat Gar Mat Gar Fac Gar Fac Gar Fac Ext Cet Arc Hub Gar Fac Gar Fac Gar Fac Gar Fac Gar Turns Passed 25611 | 131 876 311 2150 863 1278 693 1091 1273 1609 1141 1023 819 1680 270 228 537 883 971 1852 2621 806 1347 753 40 365 Spaces Moved 12499 | 48 459 171 1183 493 680 337 627 825 788 667 471 335 846 130 107 226 359 349 730 1226 231 471 464 59 217 Core 293 | 2 . . . . . . . . . . . . . . . . . . . . . . 128 59 104 Treads 7728 | 46 459 171 1183 128 . . . . . . 449 335 846 130 107 226 359 349 688 1226 231 471 211 . 113 Legs 4240 | . . . . 252 680 337 627 825 788 667 22 . . . . . . . 42 . . . . . . Wheels 112 | . . . . 112 . . . . . . . . . . . . . . . . . . . . . Hover 1 | . . . . 1 . . . . . . . . . . . . . . . . . . . . . Flight 125 | . . . . . . . . . . . . . . . . . . . . . . . 125 . . Fastest Speed 30 | 50 160 160 160 130 130 125 120 120 120 120 120 160 160 160 160 160 160 240 160 160 165 245 30 50 50 Average Speed 155 | 155 162 160 160 147 130 127 131 122 133 120 158 160 160 160 160 161 164 240 193 161 207 248 133 50 110 Slowest Speed 680 | 160 320 160 160 530 130 200 193 124 190 190 160 160 160 160 160 240 240 240 680 240 250 250 640 50 170 Overloaded Moves . | . . . . . . . . . . . . . . . . . . . . . . . . . . Propulsion Burnouts . | . . . . . . . . . . . . . . . . . . . . . . . . . . Robots Hopped . | . . . . . . . . . . . . . . . . . . . . . . . . . . Potential Cave-ins 8 | . . . . . . . . . . . . . . . . . . . . . 8 . . . . Cave-ins Triggered . | . . . . . . . . . . . . . . . . . . . . . . . . . . Exploration Rate (%) 46 | 5 94 42 82 53 73 46 70 20 89 18 69 10 85 71 72 25 47 8 82 34 27 21 50 2 26 Regions Visited 25 Branch Regions 6 Pre-discovered Areas 2 | . 1 1 . . . . . . . . . . . . . . . . . . . . . . . Known Exits Taken 9 | . . . . 1 . 1 . 1 . 1 . . . . . 1 . 1 . 1 . 1 . 1 . Unknown Exits Taken 8 | 1 1 1 1 . . . . . . . . 1 1 1 1 . . . . . . . . . . Scrap Searched 15 | . . 1 14 . . . . . . . . . . . . . . . . . . . . . . Spaces Dug 159 | . . . 5 . 18 8 19 2 6 1 . . 1 . . 8 10 11 13 32 23 1 1 . . Terrain Destroyed 468 | . . . 7 45 62 30 19 2 7 1 . . 1 . 7 11 13 11 21 83 24 6 82 . 36 Melee 128 | . . . . . 18 8 19 2 6 1 . . 1 . . 8 10 11 13 22 7 1 1 . . Projectile 64 | . . . 7 . . . . . . . . . . . 7 3 2 . 2 19 17 5 1 . 1 AOE 275 | . . . . 45 44 22 . . 1 . . . . . . . . . 6 42 . . 80 . 35 Terrain Rammed . | . . . . . . . . . . . . . . . . . . . . . . . . . . Walls Destroyed . | . . . . . . . . . . . . . . . . . . . . . . . . . . Machines Disabled . | . . . . . . . . . . . . . . . . . . . . . . . . . . Actions | -11 -10 -10 -10 -8 -8 -8 -8 -7 -7 -7 -7 -6 -6 -6 -6 -6 -6 -5 -5 -5 -5 -4 -4 -4 -4 --------- Run | Yrd Mat Min Sub Mat Gar Mat Gar Fac Gar Fac Gar Fac Ext Cet Arc Hub Gar Fac Gar Fac Gar Fac Gar Fac Gar Total 16428 | 72 529 189 1309 585 900 457 774 1002 1128 960 634 589 1100 182 138 329 547 436 978 1702 391 586 538 67 306 Wait 1507 | . 14 2 24 10 6 10 23 72 146 236 33 233 153 33 6 46 35 42 17 273 32 40 . 3 18 Move 12476 | 47 458 170 1182 493 679 336 626 824 787 666 470 334 845 129 106 225 358 348 729 1225 230 470 463 59 217 Hop . | . . . . . . . . . . . . . . . . . . . . . . . . . . Pick Up 155 | 2 5 5 4 14 11 6 8 5 9 4 16 1 1 . 3 . 20 . 19 7 2 3 9 1 . Fast Attach 148 | 7 11 . 3 13 . 5 4 10 9 4 6 1 3 2 . . 3 4 15 6 11 10 8 . 13 Attach 103 | . . 1 3 3 6 2 5 4 9 1 2 2 1 3 2 5 6 3 8 16 5 6 3 . 7 Detach 27 | . 1 . 2 2 . . 1 2 . . 1 . . 3 . . 2 . 1 1 1 5 1 . 4 Swap 225 | . 4 . 6 7 14 8 12 13 18 11 14 3 7 4 2 3 13 9 30 19 6 8 12 . 2 Drop 166 | . 3 . 7 16 14 8 12 11 9 1 14 . 3 3 . 1 10 2 29 10 1 5 3 . 4 Fire 769 | 16 28 11 78 22 20 48 6 41 27 35 27 15 40 5 17 19 19 11 50 92 44 32 27 3 36 Melee 609 | . . . . . 71 34 62 16 91 1 48 . 21 . 2 26 38 15 66 47 56 2 11 . 2 Ram 1 | . . . . . . . . . . . . . . . . . . . . . 1 . . . . Kick 6 | . . . . 3 1 . 1 1 . . . . . . . . . . . . . . . . . Crush 16 | . 5 . . 2 . . . . . . . . 3 . . 2 . . . 1 . 2 . 1 . Escape Stasis 35 | . . . . . 9 . 5 . 5 . . . . . . . . 2 12 . 2 . . . . Rewire 182 | . . . . . 69 . 9 3 18 1 3 . 23 . . 2 43 . 2 5 . . 1 . 3 Trap . | . . . . . . . . . . . . . . . . . . . . . . . . . . Miscellaneous 3 | . . . . . . . . . . . . . . . . . . . . . . 3 . . . Route ------- -11/Scrapyard -10/Materials (discovered 5 exits: [*Mat x3] / [*Min x2]) -10/Mines -10/Subcaves (discovered 3 exits: *Mat x2 / Rec) -8/Materials -8/Garrison (discovered 4 exits: *Mat x4) -8/Materials (discovered 2 exits: *Fac / Gar) -8/Garrison (discovered 2 exits: *Fac x2) -7/Factory (discovered 2 exits: [*Low] / Gar) -7/Garrison (discovered 3 exits: *Fac x3) -7/Factory (discovered 2 exits: [*Low] / Gar) -7/Garrison (discovered 2 exits: *Fac x2) -6/Factory -6/Extension (discovered 2 exits: *Fac / *Cet) -6/Cetus -6/Archives (discovered 2 exits: *Fac / *Hub) -6/Hub_04(d) (discovered 2 exits: *Fac / Gar) -6/Garrison -5/Factory -5/Garrison (discovered 3 exits: *Fac x3) -5/Factory (discovered 6 exits: *Fac x3 / Upp x2 / Gar) -5/Garrison -4/Factory -4/Garrison -4/Factory -4/Garrison History --------- Turn | Location | Event 22 | -11/Scrapyard | Discovered new exit (range 16) 132 | -11/Scrapyard | Entered Materials 283 | -10/Materials | Met 8R-AWN 294 | -10/Materials | Discovered new exit (range 15) 294 | -10/Materials | Discovered new exit (range 19) 305 | -10/Materials | Build established: Mutant 533 | -10/Materials | Discovered new exit (range 16) 738 | -10/Materials | Discovered new exit (range 15) 822 | -10/Materials | Discovered new exit (range 5) 979 | -10/Materials | Central database locked down 1008 | -10/Materials | Entered Mines 1010 | -10/Mines | Followed 8R-AWN into the Mines 1050 | -10/Mines | Found a hidden stash of uninstalled traps 1051 | -10/Mines | Learned location of Storage (-9) 1051 | -10/Mines | Met a Derelict bent on vengeance 1311 | -10/Mines | Discovered new exit (range 6) 1319 | -10/Mines | Entered Subcaves 2162 | -10/Subcaves | Discovered new exit (range 7) 2559 | -10/Subcaves | Shifting Twisted Machinery released Lgt. Humpback 2605 | -10/Subcaves | Shifting Twisted Machinery released Sub. Laser 2695 | -10/Subcaves | Shifting Twisted Machinery released Battle Cannon 2735 | -10/Subcaves | Shifting Twisted Machinery released Shrapnel Trap 3098 | -10/Subcaves | A swath of the cavern ceiling suddenly collapsed 3208 | -10/Subcaves | Identified exit to Recycling 3338 | -10/Subcaves | Disturbed a concealed Subdweller 3339 | -10/Subcaves | Core integrity fell below 50% 3385 | -10/Subcaves | Shifting Twisted Machinery released Sub. Laser 3393 | -10/Subcaves | Shifting Twisted Machinery released Mak. Power Source 3424 | -10/Subcaves | Discovered new exit (range 7) 3469 | -10/Subcaves | Entered Materials 3469 | -8/Materials | Evolved 4 slots: Propulsion x2, Utility x2 3736 | -8/Materials | Met 7R-MNS 4227 | -8/Materials | Garrison activated, responded to threat 4332 | -8/Materials | Identified exit to Garrison 4332 | -8/Materials | Entered Garrison 4404 | -8/Garrison | Triggered checkpoint 4404 | -8/Garrison | Garrison Relay disabled 4446 | -8/Garrison | Triggered checkpoint 4750 | -8/Garrison | Triggered checkpoint 4757 | -8/Garrison | Triggered checkpoint 4790 | -8/Garrison | Triggered checkpoint 4814 | -8/Garrison | Triggered checkpoint 4833 | -8/Garrison | Garrison Relay disabled 4847 | -8/Garrison | Garrison Relay disabled 4884 | -8/Garrison | Triggered checkpoint 5077 | -8/Garrison | Discovered new exit (range 12) 5088 | -8/Garrison | Triggered checkpoint 5105 | -8/Garrison | Triggered checkpoint 5121 | -8/Garrison | Garrison Relay disabled 5376 | -8/Garrison | Discovered new exit (range 40) 5376 | -8/Garrison | Discovered new exit (range 11) 5376 | -8/Garrison | Discovered new exit (range 53) 5376 | -8/Garrison | Discovered new exit (range 21) 5418 | -8/Garrison | Triggered checkpoint 5467 | -8/Garrison | Installed Relay Interface Framework 5471 | -8/Garrison | Build established: Commander-Mutant 5476 | -8/Garrison | Garrison Relay disabled 5526 | -8/Garrison | Triggered checkpoint 5610 | -8/Garrison | Entered Materials 5610 | -8/Materials | Accompanied by 5 allies 5919 | -8/Materials | Discovered new exit (range 4) 5979 | -8/Materials | Core integrity fell below 50% 6010 | -8/Materials | First assault squad dispatched 6149 | -8/Materials | Identified exit to Garrison 6177 | -8/Materials | Build established: Scavenger-Mutant 6303 | -8/Materials | Entered Garrison 6303 | -8/Garrison | Accompanied by 3 allies 6334 | -8/Garrison | Expanded RIF knowledge: Threat Obfuscation 6431 | -8/Garrison | Triggered checkpoint 6459 | -8/Garrison | Garrison Relay disabled 6653 | -8/Garrison | Triggered checkpoint 6669 | -8/Garrison | Triggered checkpoint 6794 | -8/Garrison | Discovered new exit (range 12) 6797 | -8/Garrison | Triggered checkpoint 6835 | -8/Garrison | Triggered checkpoint 6886 | -8/Garrison | Garrison Relay disabled 7093 | -8/Garrison | Triggered checkpoint 7123 | -8/Garrison | Triggered checkpoint 7302 | -8/Garrison | Lost 3 parts (1p1n1u) 7370 | -8/Garrison | Discovered new exit (range 10) 7394 | -8/Garrison | Entered Factory 7394 | -7/Factory | Accompanied by 1 ally 7394 | -7/Factory | Evolved 2 slots: Propulsion x1, Utility x1 7588 | -7/Factory | Build established: Bothacker-Mutant 7671 | -7/Factory | P-60 Hacker assimilated allied Guardian 4a 7765 | -7/Factory | Discovered new exit (range 16) 8174 | -7/Factory | Build established: Scavenger-Mutant 8431 | -7/Factory | Allied Derelicts emerged from ambush trap array 8625 | -7/Factory | Identified exit to Garrison 8643 | -7/Factory | Garrison activated, responded to threat 8667 | -7/Factory | Entered Garrison 8667 | -7/Garrison | Accompanied by 3 allies 8745 | -7/Garrison | Triggered checkpoint 9067 | -7/Garrison | Triggered checkpoint 9084 | -7/Garrison | Garrison Relay disabled 9242 | -7/Garrison | Build established: Commander-Mutant 9253 | -7/Garrison | Discovered new exit (range 7) 9281 | -7/Garrison | Triggered checkpoint 9354 | -7/Garrison | P-60 Hacker assimilated allied Smith 4a 9389 | -7/Garrison | Garrison Relay disabled 9441 | -7/Garrison | Triggered checkpoint 9511 | -7/Garrison | Lost 3 parts (1p2n) 9543 | -7/Garrison | Triggered checkpoint 9557 | -7/Garrison | Garrison Relay disabled 9659 | -7/Garrison | Heavy support dispatched to Factory 9679 | -7/Garrison | P-60 Hacker assimilated allied Trooper 4e 9700 | -7/Garrison | Build established: Bothacker-Mutant 9711 | -7/Garrison | Lost 3 parts (2n1u) 9738 | -7/Garrison | Garrison Relay disabled 9750 | -7/Garrison | Garrison Relay disabled 9759 | -7/Garrison | Garrison Relay disabled 9772 | -7/Garrison | Garrison Relay disabled 9831 | -7/Garrison | Discovered new exit (range 7) 9876 | -7/Garrison | H-XX Assembler disabled 10056 | -7/Garrison | Discovered new exit (range 12) 10083 | -7/Garrison | Expanded RIF knowledge: Alert ID Control 10093 | -7/Garrison | Garrison Relay disabled 10127 | -7/Garrison | Triggered checkpoint 10276 | -7/Garrison | Entered Factory 10276 | -7/Factory | Accompanied by 5 allies 10338 | -7/Factory | Core integrity fell below 50% 10361 | -7/Factory | Garrison activated, responded to threat 10390 | -7/Factory | Lost 3 allies 10401 | -7/Factory | Identified exit to Garrison 10607 | -7/Factory | Discovered new exit (range 13) 10779 | -7/Factory | Identified exit to Garrison 10877 | -7/Factory | Repaired Carbon-fiber Leg 10928 | -7/Factory | Repaired Flexi-carbon Leg 11417 | -7/Factory | Entered Garrison 11417 | -7/Garrison | Accompanied by 7 allies 11576 | -7/Garrison | Build established: Commander-Mutant 11609 | -7/Garrison | Triggered checkpoint 11639 | -7/Garrison | Garrison Relay disabled 11687 | -7/Garrison | P-60 Hacker assimilated allied Guardian 4f 11693 | -7/Garrison | P-60 Hacker assimilated allied Commando 4a 11696 | -7/Garrison | P-60 Hacker assimilated allied Guardian 4g 11807 | -7/Garrison | Triggered checkpoint 11859 | -7/Garrison | Triggered checkpoint 11945 | -7/Garrison | Build established: Bothacker-Mutant 11951 | -7/Garrison | Triggered checkpoint 11994 | -7/Garrison | Garrison Relay disabled 12075 | -7/Garrison | Discovered new exit (range 13) 12210 | -7/Garrison | Discovered new exit (range 10) 12237 | -7/Garrison | Triggered checkpoint 12311 | -7/Garrison | Garrison Relay disabled 12350 | -7/Garrison | Expanded RIF knowledge: Coupler Efficiency 12440 | -7/Garrison | Entered Factory 12440 | -6/Factory | Accompanied by 3 allies 12440 | -6/Factory | Evolved 2 slots: Propulsion x1, Utility x1 12485 | -6/Factory | Identified exit to Garrison 12649 | -6/Factory | Build established: Botlord-Mutant 12704 | -6/Factory | Fabricated S-27 Virus (x4) 12762 | -6/Factory | Fabricated M-28 Smith (x1) 12863 | -6/Factory | Lost 5 allies 12925 | -6/Factory | Fabricated M-28 Smith (x1) 13247 | -6/Factory | Discovered new exit (range 6) 13259 | -6/Factory | Entered Extension 13259 | -6/Extension | Accompanied by 3 allies 13408 | -6/Extension | Found Hvy. Reflective Plating 13828 | -6/Extension | Spotted B-75 Beast 13840 | -6/Extension | Spotted B-75 Beast 13842 | -6/Extension | Assimilated Beast 5a with formatsys_high 13865 | -6/Extension | Destroyed B-75 Beast 13870 | -6/Extension | Build established: Bothacker-Mutant 13911 | -6/Extension | Lost 6 allies 14366 | -6/Extension | Rescued a captive Derelict 14377 | -6/Extension | Rescued a captive Derelict 14377 | -6/Extension | Rescued a captive Derelict 14528 | -6/Extension | Rescued a captive Derelict 14570 | -6/Extension | Lost 5 allies 14703 | -6/Extension | Lost 3 allies 14794 | -6/Extension | Rescued a captive Derelict 14852 | -6/Extension | Discovered new exit (range 10) 14855 | -6/Extension | Discovered new exit (range 6) 14939 | -6/Extension | Entered Cetus 14939 | -6/Cetus | Accompanied by 9 allies 14965 | -6/Cetus | Spotted Cetus Guard 14966 | -6/Cetus | Spotted Cetus Guard 14975 | -6/Cetus | Spotted Cetus Guard 14977 | -6/Cetus | Allies destroyed Cetus Guard 14980 | -6/Cetus | Allies destroyed Cetus Guard 14980 | -6/Cetus | Spotted Cetus Guard 14984 | -6/Cetus | Allies destroyed Cetus Guard 15004 | -6/Cetus | Destroyed Cetus Guard 15029 | -6/Cetus | Lost 5 allies 15170 | -6/Cetus | Discovered new exit (range 15) 15209 | -6/Cetus | Entered Archives 15209 | -6/Archives | Accompanied by 4 allies 15280 | -6/Archives | Discovered new exit (range 16) 15370 | -6/Archives | Discovered new exit (range 16) 15402 | -6/Archives | Unable to access archive contents 15437 | -6/Archives | Entered Hub_04(d) 15437 | -6/Hub_04(d) | Accompanied by 8 allies 15437 | -6/Hub_04(d) | Spotted B-75 Beast 15500 | -6/Hub_04(d) | Lost 4 allies 15509 | -6/Hub_04(d) | Lost 3 parts (1p2w) 15660 | -6/Hub_04(d) | Discovered new exit (range 16) 15811 | -6/Hub_04(d) | Identified exit to Garrison 15902 | -6/Hub_04(d) | Network Hub disabled 15953 | -6/Hub_04(d) | Spotted Lightning 15953 | -6/Hub_04(d) | Spotted Lightning 15953 | -6/Hub_04(d) | Spotted Lightning 15969 | -6/Hub_04(d) | System corruption reached 10% 15974 | -6/Hub_04(d) | Entered Garrison 16024 | -6/Garrison | Triggered checkpoint 16072 | -6/Garrison | Build established: Hauler-Mutant 16077 | -6/Garrison | Expanded RIF knowledge: Autoassimilate 16101 | -6/Garrison | Garrison Relay disabled 16220 | -6/Garrison | Triggered checkpoint 16316 | -6/Garrison | Triggered checkpoint 16328 | -6/Garrison | Triggered checkpoint 16403 | -6/Garrison | Build established: Bothacker-Mutant 16425 | -6/Garrison | Garrison Relay disabled 16471 | -6/Garrison | Discovered new exit (range 9) 16491 | -6/Garrison | Spotted Striker 16520 | -6/Garrison | Allies destroyed Striker 16577 | -6/Garrison | Rewired Striker 16633 | -6/Garrison | Garrison Relay disabled 16705 | -6/Garrison | Garrison Relay disabled 16782 | -6/Garrison | Garrison Relay disabled 16857 | -6/Garrison | Entered Factory 16857 | -5/Factory | Accompanied by 6 allies 16857 | -5/Factory | Evolved 2 slots: Utility x2 17022 | -5/Factory | Build established: Botlord-Mutant 17072 | -5/Factory | Repaired Imp. Heavy Treads 17826 | -5/Factory | Identified exit to Garrison 17828 | -5/Factory | Entered Garrison 17828 | -5/Garrison | Accompanied by 9 allies 18008 | -5/Garrison | Triggered checkpoint 18236 | -5/Garrison | Spotted B-75 Beast 18247 | -5/Garrison | Destroyed B-75 Beast 18252 | -5/Garrison | Triggered checkpoint 18256 | -5/Garrison | Triggered checkpoint 18271 | -5/Garrison | Triggered checkpoint 18280 | -5/Garrison | System corruption reached 10% 18333 | -5/Garrison | Lost 3 parts (2n1w) 18650 | -5/Garrison | Triggered checkpoint 18900 | -5/Garrison | Garrison Relay disabled 18950 | -5/Garrison | Discovered new exit (range 14) 18976 | -5/Garrison | Learned Factory security intel 19126 | -5/Garrison | Triggered checkpoint 19227 | -5/Garrison | Garrison Relay disabled 19280 | -5/Garrison | Discovered new exit (range 11) 19313 | -5/Garrison | Garrison Relay disabled 19476 | -5/Garrison | Triggered checkpoint 19513 | -5/Garrison | Garrison Relay disabled 19583 | -5/Garrison | Expanded RIF knowledge: Program Shield 19667 | -5/Garrison | Discovered new exit (range 3) 19680 | -5/Garrison | Entered Factory 19680 | -5/Factory | Accompanied by 2 allies 19798 | -5/Factory | Identified exit to Garrison 19954 | -5/Factory | Lost 5 allies 20059 | -5/Factory | Repaired Imp. Heavy Treads 20123 | -5/Factory | Repaired Imp. Heavy Treads 20844 | -5/Factory | Identified exit to Upper Caves 21393 | -5/Factory | Discovered new exit (range 8) 21393 | -5/Factory | Discovered new exit (range 11) 21652 | -5/Factory | Identified exit to Garrison 21923 | -5/Factory | Cargo convoy interrupted 21949 | -5/Factory | Core integrity fell below 50% 21967 | -5/Factory | Lost 9 allies 22063 | -5/Factory | Discovered new exit (range 15) 22076 | -5/Factory | Lost 4 parts (2n2u) 22136 | -5/Factory | Found Prototype Device 22136 | -5/Factory | Identified Active Sensor Suite 22148 | -5/Factory | Core integrity fell below 20% 22301 | -5/Factory | Entered Garrison 22623 | -5/Garrison | Expanded RIF knowledge: Structural Interface 22689 | -5/Garrison | Lost 3 parts (2n1w) 22725 | -5/Garrison | Triggered checkpoint 22891 | -5/Garrison | Garrison Relay disabled 23080 | -5/Garrison | Discovered new exit (range 12) 23107 | -5/Garrison | Entered Factory 23107 | -4/Factory | Evolved 2 slots: Power x1, Utility x1 23311 | -4/Factory | Lost 3 parts (1n2u) 23618 | -4/Factory | Found Quantum Capacitor 24380 | -4/Factory | Identified exit to Garrison 24454 | -4/Factory | Entered Garrison 24498 | -4/Garrison | Expanded RIF knowledge: Autoassimilate 24594 | -4/Garrison | Triggered checkpoint 24635 | -4/Garrison | Garrison Relay disabled 25014 | -4/Garrison | Triggered checkpoint 25021 | -4/Garrison | Spotted B-86 Titan 25051 | -4/Garrison | Triggered checkpoint 25093 | -4/Garrison | Core integrity fell below 50% 25123 | -4/Garrison | Lost 12 parts (1p5n4u2w) 25133 | -4/Garrison | Spotted Striker 25133 | -4/Garrison | Spotted Striker 25197 | -4/Garrison | Discovered new exit (range 10) 25207 | -4/Garrison | Entered Factory 25247 | -4/Factory | Identified exit to Garrison 25247 | -4/Factory | Entered Garrison 25257 | -4/Garrison | Triggered checkpoint 25275 | -4/Garrison | H-XX Assembler disabled 25454 | -4/Garrison | Garrison Relay disabled 25545 | -4/Garrison | Core integrity fell below 20% 25551 | -4/Garrison | Triggered checkpoint 25593 | -4/Garrison | Destroyed 10 combat bots 25603 | -4/Garrison | Lost 5 parts (1p2n1u1w) 25612 | -4/Garrison | Destroyed by H-77 Assassin with High-powered Shotgun Last Messages --------------- 25606_ Penetrated by Slug. 25606_ Slug penetrates Wall. 25606_ P-70 Sage fails to hack Veteran 7c. 25606_ Slug penetrates Wall. 25606_ P-70 Sage repels hacking attempt. 25607_ Wall collapses. 25608_ Veteran 7c destroyed. 25608_ P-70 Sage repels hacking attempt. 25609_ Myomer Leg destroyed. 25609_ Arm. Medium Treads destroyed. 25609_ P-70 Sage repels hacking attempt. 25610_ Penetrated by Slug. 25610_ Slug penetrates Wall. 25610_ Penetrated by Slug. 25612_ Acquired 38 matter. 25612_ Penetrated by Slug. 25612_ Arm. Treads destroyed. 25612_ Penetrated by Slug. 25612_ Remote Datajack destroyed. 25612_ Slug penetrates Wall. Map ----- +----------------------------------------------------+ | ?????????????????????????????????????????????????? | | ????????????????????????########?????????????????? | | ????????????????????????# #?????????????????? | | ????????????????????????# """"#?????????????????? | | ????????????????????????# ]]""#?????????????????? | | ????????????????????????# ]]""#?????????????????? | | ????????????????????????# """"#?????????????????? | | ????????????????????????# #?????????????????? | | ????????????????????????# ######?????????????????? | | ????????????????????????#+###????????????????????? | | ????????????????????????# #"#????????????????????? | | ????????????????????????#! "#????????????????????? | | ????????????????????????#! #????????????????????? | | ????????????????????????# ! #????????????????????? | | ????????????????????????# #"#????????????????????? | | ????????????????????????# ###????????????????????? | | ????????????????????????# #??????????????????????? | | ????????????????????????# #??????????????????????? | | ????????????????????????# ##?????????????????????? | | ????????????????????##### ;#?????????????????????? | | ????#####???????#####"# ##?????????????????????? | | ????# #???????# " [ ;#?????????????????????? | | ????# #########+###"# ;#?????????????????????? | | ????# #?#####!##?????????????????????? | | ????# #?????#[#??????????????????????? | | ????######+##### #######@#??????????????????????? | | ?????????# #???# =![|#??????????????????????? | | ########?# #???# ####g%###??????????????????????? | | ""# ! #?# #???# #??#h##????????????????????????? | | [[=! #?# #???# #??#h#?????????????????????????? | | [ [ ""### #???# #??# #?????????????????????????? | | ## ##### #### ######????????????????????? | | + + + #????????????????????? | | ######## #### #### #????????????????????? | | #??????# #??# # ###??????????????????? | | #??????# #??# # =![ #??????????????????? | | """"##??????# #??# # %[#??????????????????? | | "! ! #???????# #??# # % = ?????????????? | | ""# #???????# ?? ** ???????? | | ########???????# % = ???? | | ???????????????######## = %= ## ######???? | | ??????????????????????####* ## #??? #????????? | | ????????????????????????? ?% ????????????? | | ????????????????????????? ? ???????????? | | ????????????????????????? ?? ?????????? | | ???????????????????????? ? ????????? | | ????????????????????????## ?? # ##???????? | | ????????????????????????? ?? # ???????? | | ????????????????????????? ?? ? ???????? | | ????????????????????????? ?? ? ???????? | +----------------------------------------------------+ Best States ------------- Heat Dissipation 66 Energy Generation 32 Energy Capacity 500 Matter Stores 300 Matter Capacity 300 Sight Range 20 Robot Scan Range 20 Terrain Scan Range 16 Terrain Scan Density 210 Jamming Range 14 Additional Mass Support 12 Corruption Block 8 Armor Coverage 1200 Resistance: KI 30 Resistance: TH 25 Core Shielding 20 Utility Shielding 66 Phase Shifting 10 Evasion (%) 64 Targeting Accuracy 6 Recoil Reduction 6 Offensive Hacking 24 Defensive Hacking 12 Relay Coupler Types 4 Relay Coupler Value 110 Authchip Count 2 Item Schematics ----------------- Remote Datajack | -7/Factory | Scanalyzed Power Maul | -7/Factory | Scanalyzed Imp. Plasma Cutter | -6/Extension | Hacked Robot Schematics ------------------ M-28 Smith | -6/Factory | Hacked Fabricated ------------ S-27 Virus | x4 | -6/Factory | Preloaded M-28 Smith | x1 | -6/Factory M-28 Smith | x1 | -6/Factory Repaired ---------- Carbon-fiber Leg | 11% | -7/Factory Flexi-carbon Leg | 19% | -7/Factory Imp. Heavy Treads | 6% | -5/Factory Imp. Heavy Treads | 17% | -5/Factory Imp. Heavy Treads | 49% | -5/Factory Alien Tech Used ----------------- None Achievements -------------- None Challenges ------------ None Game ------ Seed EfficiencySystemSystem Manual? 0 Play Time 04:46:00 Cumulative 259.7 hours Start 2025.06.18 @ 11:22:49 End 2025.06.19 @ 19:04:46 Sessions 9 Manual Loads 0 Difficulty Rogue Special Mode None Game No. 129 Rogue 129 Adventurer 0 Explorer 0 Win Type - Total 16 Types 6/0/5/1/3/1/0/0/0/0 Lore% 83 Gallery% 71 Achievement% 67 Wizard Run 0 Options --------- Layout 1 ASCII 0 Keyboard 0 Movement Numpad Keybinds 0 Fullscreen 1 Font 24/Smallcaps Map View 50x35 Zoom Use 0% Tactical HUD 1 Map Filters NONE Filters NONE Steam 1 RUN: 1e8f6737-92ab-438b-bbbb-238c56de653e